fUST/lending_fUST_20250210
["ID","MTS","AMOUNT","RATE_DAILY","PERIOD"]
[352540785,1739158250173,-500.0,0.00011917,2]
[352540786,1739158250186,-500.0,0.00011917,2]
[352540787,1739158250199,-500.0,0.00011917,2]
[352540788,1739158250215,-500.0,0.00011917,2]
[352540789,1739158250228,-500.0,0.00011917,2]
[352540790,1739158250241,-500.0,0.00011917,2]
[352540791,1739158250255,-500.0,0.00011917,2]
[352540792,1739158250268,-500.0,0.00011917,2]
[352540793,1739158250281,-500.0,0.00011917,2]
[352540794,1739158250294,-500.0,0.00011917,2]
[352540795,1739158250307,-500.0,0.00011917,2]
[352540796,1739158250320,-1264.74,0.00011917,2]
[352540797,1739158250332,-500.0,0.00011917,2]
[352540798,1739158250347,-500.0,0.00011917,2]
[352540799,1739158250359,-500.0,0.00011917,2]
[352540800,1739158250372,-500.0,0.00011917,2]
[352540801,1739158250385,-500.0,0.00011917,2]
[352540802,1739158250398,-500.0,0.00011917,2]
[352540803,1739158250410,-2387.63,0.00011917,2]
[352540804,1739158250423,-2833.6,0.00011917,2]
[352540805,1739158250436,-1462.84,0.00011917,2]
[352540806,1739158250448,-9414.28,0.00011917,2]
[352540807,1739158250462,-540.44,0.00011917,2]
[352540808,1739158250474,-2762.05,0.00011917,2]
[352540809,1739158250486,-832.77,0.00011917,2]
[352540810,1739158250499,-500.0,0.00011917,2]
[352540811,1739158250511,-18426.22,0.00011917,2]
[352540812,1739158250524,-500.0,0.00011917,2]
[352540813,1739158250537,-629.0,0.00011917,2]
[352540814,1739158250549,-1212.39,0.00011917,2]
[352540815,1739158250562,-1041.49,0.00011917,2]
[352540816,1739158250579,-500.0,0.00011917,2]
[352540817,1739158250592,-541.97,0.00011917,2]
[352540818,1739158250606,-560.89,0.00011917,2]
[352540819,1739158250616,-1382.72,0.00011917,2]
[352540820,1739158250625,-214.73044086,0.00011917,2]
[352540821,1739158250635,-500.0,0.00011917,2]
[352540822,1739158250646,-1123.04,0.00011917,2]
[352540823,1739158250754,-1124.08,0.00011917,2]
[352540824,1739158250783,-500.0,0.00011917,2]
[352540825,1739158250793,-785.51,0.00011917,2]
[352540826,1739158250803,-1966.77,0.00011917,2]
[352540827,1739158250812,-517.43,0.00011917,2]
[352540828,1739158250824,-2179.85,0.00011917,2]
[352540829,1739158250834,-1003.81,0.00011917,2]
[352540830,1739158250843,-577.79,0.00011917,2]
[352540831,1739158250853,-500.0,0.00011917,2]
[352540832,1739158250862,-792.12,0.00011917,2]
[352540833,1739158250871,-888.19,0.00011917,2]
[352540834,1739158250881,-715.47,0.00011917,2]
[352540835,1739158250890,-732.07,0.00011917,2]
[352540836,1739158250899,-974.08,0.00011917,2]
[352540837,1739158250909,-500.0,0.00011917,2]
[352540838,1739158250919,-591.46,0.00011917,2]
[352540839,1739158250928,-565.22,0.00011917,2]
[352540840,1739158250938,-500.0,0.00011917,2]
[352540841,1739158250948,-838.17,0.00011917,2]
[352540842,1739158250957,-500.0,0.00011917,2]
[352540843,1739158250966,-511.83,0.00011917,2]
[352540844,1739158250976,-2397.98,0.00011917,2]
[352540845,1739158250985,-500.0,0.00011917,2]
[352540846,1739158250995,-2724.01,0.00011917,2]
[352540847,1739158251005,-500.0,0.00011917,2]
[352540848,1739158251015,-500.0,0.00011917,2]
[352540849,1739158251024,-5390.65,0.00011917,2]
[352540850,1739158251033,-1069.82,0.00011917,2]
[352540851,1739158251042,-762.52,0.00011917,2]
[352540852,1739158251051,-529.22,0.00011917,2]
[352540853,1739158251061,-7501.34,0.00011917,2]
[352540854,1739158251073,-500.0,0.00011975,2]
[352540855,1739158251082,-504.93731554,0.00011981,2]
[352540856,1739158251091,-500.0,0.00012011,2]
[352540857,1739158251101,-500.0,0.00012011,2]
[352540858,1739158251110,-488.50630826,0.00012017,2]
[352540859,1739158251119,-502.56975432,0.00012027,2]
[352540860,1739158251128,-251.70775413,0.00012027,2]
[352540861,1739158251137,-163.67726063,0.00012029,2]
[352540862,1739158251146,-500.0,0.00012029,2]
[352540863,1739158251155,-508.44500603,0.00012029,2]
[352540864,1739158251164,-626.10567238,0.00012029,2]
[352540865,1739158251174,-420.0,0.0001204,2]
[352540866,1739158251183,-500.0,0.00012054,2]
[352540867,1739158251193,-500.0,0.00012054,2]
[352540868,1739158251207,-500.0,0.00012054,2]
[352540869,1739158251216,-500.0,0.00012054,2]
[352540870,1739158251226,-750.9,0.00012054,2]
[352540871,1739158251235,-500.0,0.00012054,2]
[352540872,1739158251246,-500.0,0.00012054,2]
[352540873,1739158251256,-500.0,0.00012054,2]
[352540874,1739158251265,-500.0,0.00012054,2]
[352540875,1739158251276,-500.0,0.00012054,2]
[352540876,1739158251285,-500.0,0.00012054,2]
[352540877,1739158251295,-500.0,0.00012054,2]
[352540878,1739158251304,-500.0,0.00012054,2]
[352540879,1739158251313,-869.06,0.00012054,2]
[352540880,1739158251326,-500.0,0.00012054,2]
[352540881,1739158251335,-500.0,0.00012054,2]
[352540882,1739158251345,-500.0,0.00012054,2]
[352540883,1739158251354,-500.0,0.00012054,2]
[352540884,1739158251363,-597.8535654,0.00012054,2]
[352540885,1739158251373,-500.0,0.00012054,2]
[352540886,1739158251382,-500.0,0.00012054,2]
[352540887,1739158251392,-500.0,0.00012054,2]
[352540888,1739158251401,-500.0,0.00012054,2]
[352540889,1739158251410,-500.0,0.00012054,2]
[352540890,1739158251420,-1264.74,0.00012054,2]
[352540891,1739158251429,-500.0,0.00012054,2]
[352540892,1739158251439,-500.0,0.00012054,2]
[352540893,1739158251448,-500.0,0.00012054,2]
[352540894,1739158251457,-500.0,0.00012054,2]
[352540895,1739158251467,-500.0,0.00012054,2]
[352540896,1739158251476,-2387.63,0.00012054,2]
[352540897,1739158251485,-2833.6,0.00012054,2]
[352540898,1739158251495,-1462.84,0.00012054,2]
[352540899,1739158251504,-9414.28,0.00012054,2]
[352540900,1739158251513,-540.44,0.00012054,2]
[352540901,1739158251522,-2762.05,0.00012054,2]
[352540902,1739158251531,-832.77,0.00012054,2]
[352540903,1739158251541,-500.0,0.00012054,2]
[352540904,1739158251551,-18426.22,0.00012054,2]
[352540905,1739158251559,-500.0,0.00012054,2]
[352540906,1739158251570,-629.0,0.00012054,2]
[352540907,1739158251579,-1212.39,0.00012054,2]
[352540908,1739158251588,-1041.49,0.00012054,2]
[352540909,1739158251597,-500.0,0.00012054,2]
[352540910,1739158251607,-541.97,0.00012054,2]
[352540911,1739158251616,-560.89,0.00012054,2]
[352540912,1739158251626,-1382.72,0.00012054,2]
[352540913,1739158251635,-500.0,0.00012054,2]
[352540914,1739158251644,-1123.04,0.00012054,2]
[352540915,1739158251653,-1124.08,0.00012054,2]
[352540916,1739158251662,-500.0,0.00012054,2]
[352540917,1739158251671,-785.51,0.00012054,2]
[352540918,1739158251680,-1966.77,0.00012054,2]
[352540919,1739158251689,-517.43,0.00012054,2]
[352540920,1739158251699,-2179.85,0.00012054,2]
[352540921,1739158251708,-1003.81,0.00012054,2]
[352540922,1739158251717,-577.79,0.00012054,2]
[352540923,1739158251726,-500.0,0.00012054,2]
[352540924,1739158251735,-792.12,0.00012054,2]
[352540925,1739158251744,-888.19,0.00012054,2]
[352540926,1739158251754,-715.47,0.00012054,2]
[352540927,1739158251763,-732.07,0.00012054,2]
[352540928,1739158251772,-974.08,0.00012054,2]
[352540929,1739158251781,-500.0,0.00012054,2]
[352540930,1739158251791,-591.46,0.00012054,2]
[352540931,1739158251800,-565.22,0.00012054,2]
[352540932,1739158251809,-500.0,0.00012054,2]
[352540933,1739158251819,-838.17,0.00012054,2]
[352540934,1739158251828,-500.0,0.00012054,2]
[352540935,1739158251837,-511.83,0.00012054,2]
[352540936,1739158251846,-2397.98,0.00012054,2]
[352540937,1739158251856,-500.0,0.00012054,2]
[352540938,1739158251866,-2724.01,0.00012054,2]
[352540939,1739158251875,-500.0,0.00012054,2]
[352540940,1739158251884,-500.0,0.00012054,2]
[352540941,1739158251894,-5390.65,0.00012054,2]
[352540942,1739158251903,-1069.82,0.00012054,2]
[352540943,1739158251913,-762.52,0.00012054,2]
[352540944,1739158251921,-529.22,0.00012054,2]
[352540945,1739158251931,-7501.34,0.00012054,2]
[352540946,1739158251940,-151.99847532,0.00012062,2]
[352540947,1739158251949,-415.69858586,0.00012091,2]
[352540948,1739158251958,-500.0,0.00012097,2]
[352540949,1739158251967,-500.0,0.00012097,2]
[352540950,1739158251976,-151.0,0.000121,2]
[352540951,1739158251986,-410.28269195,0.00012115,2]
[352540952,1739158251995,-417.726748,0.00012168,2]
[352540953,1739158252004,-151.647036,0.00012191,2]
[352540954,1739158252013,-500.0,0.00012191,2]
[352540955,1739158252022,-500.0,0.00012191,2]
[352540956,1739158252031,-506.65904746,0.00012191,2]
[352540957,1739158252040,-750.9,0.00012191,2]
[352540958,1739158252049,-500.0,0.00012191,2]
[352540959,1739158252058,-500.0,0.00012191,2]
[352540960,1739158252068,-500.0,0.00012191,2]
[352540961,1739158252079,-500.0,0.00012191,2]
[352540962,1739158252088,-500.0,0.00012191,2]
[352540963,1739158252097,-500.0,0.00012191,2]
[352540964,1739158252108,-500.0,0.00012191,2]
[352540965,1739158252117,-500.0,0.00012191,2]
[352540966,1739158252127,-869.06,0.00012191,2]
[352540967,1739158252137,-500.0,0.00012191,2]
[352540968,1739158252146,-500.0,0.00012191,2]
[352540969,1739158252155,-373.80943482,0.00012191,2]
[352540970,1739158252164,-500.0,0.00012191,2]
[352540971,1739158252173,-500.0,0.00012191,2]
[352540972,1739158252183,-500.0,0.00012191,2]
[352540973,1739158252192,-500.0,0.00012191,2]
[352540974,1739158252202,-587.46556329,0.00012191,2]
[352540975,1739158252216,-500.0,0.00012191,2]
[352540976,1739158252225,-1264.74,0.00012191,2]
[352540977,1739158252235,-500.0,0.00012191,2]
[352540978,1739158252244,-500.0,0.00012191,2]
[352540979,1739158252255,-500.0,0.00012191,2]
[352540980,1739158252264,-500.0,0.00012191,2]
[352540981,1739158252273,-500.0,0.00012191,2]
[352540982,1739158252283,-2387.63,0.00012191,2]
[352540983,1739158252293,-2833.6,0.00012191,2]
[352540984,1739158252303,-1462.84,0.00012191,2]
[352540985,1739158252312,-9414.28,0.00012191,2]
[352540986,1739158252322,-540.44,0.00012191,2]
[352540987,1739158252331,-2762.05,0.00012191,2]
[352540988,1739158252341,-832.77,0.00012191,2]
[352540989,1739158252351,-500.0,0.00012191,2]
[352540990,1739158252360,-18426.22,0.00012191,2]
[352540991,1739158252370,-500.0,0.00012191,2]
[352540992,1739158252379,-629.0,0.00012191,2]
[352540993,1739158252389,-1212.39,0.00012191,2]
[352540994,1739158252399,-1041.49,0.00012191,2]
[352540995,1739158252408,-500.0,0.00012191,2]
[352540996,1739158252418,-541.97,0.00012191,2]
[352540997,1739158252427,-560.89,0.00012191,2]
[352540998,1739158252438,-1382.72,0.00012191,2]
[352540999,1739158252448,-500.0,0.00012191,2]
[352541000,1739158252457,-1123.04,0.00012191,2]
[352541001,1739158252467,-1124.08,0.00012191,2]
[352541002,1739158252476,-500.0,0.00012191,2]
[352541003,1739158252486,-785.51,0.00012191,2]
[352541004,1739158252495,-1966.77,0.00012191,2]
[352541005,1739158252505,-517.43,0.00012191,2]
[352541006,1739158252514,-2179.85,0.00012191,2]
[352541007,1739158252524,-1003.81,0.00012191,2]
[352541008,1739158252534,-577.79,0.00012191,2]
[352541009,1739158252543,-500.0,0.00012191,2]
[352541010,1739158252553,-792.12,0.00012191,2]
[352541011,1739158252562,-888.19,0.00012191,2]
[352541012,1739158252573,-715.47,0.00012191,2]
[352541013,1739158252582,-732.07,0.00012191,2]
[352541014,1739158252592,-974.08,0.00012191,2]
[352541015,1739158252601,-500.0,0.00012191,2]
[352541016,1739158252611,-591.46,0.00012191,2]
[352541017,1739158252620,-565.22,0.00012191,2]
[352541018,1739158252630,-500.0,0.00012191,2]
[352541019,1739158252640,-838.17,0.00012191,2]
[352541020,1739158252649,-500.0,0.00012191,2]
[352541021,1739158252658,-511.83,0.00012191,2]
[352541022,1739158252668,-2397.98,0.00012191,2]
[352541023,1739158252677,-500.0,0.00012191,2]
[352541024,1739158252687,-2724.01,0.00012191,2]
[352541025,1739158252696,-500.0,0.00012191,2]
[352541026,1739158252705,-500.0,0.00012191,2]
[352541027,1739158252715,-5390.65,0.00012191,2]
[352541028,1739158252724,-1069.82,0.00012191,2]
[352541029,1739158252813,-762.52,0.00012191,2]
[352541030,1739158252823,-529.22,0.00012191,2]
[352541031,1739158252832,-7501.34,0.00012191,2]
[352541032,1739158252841,-151.0,0.000122,2]
[352541033,1739158252850,-1000.0,0.00012249,2]
[352541034,1739158252859,-399.90767384,0.00012281,2]
[352541035,1739158252868,-151.0,0.000123,2]
[352541036,1739158252877,-151.0,0.000123,2]
[352541037,1739158252886,-503.59910472,0.00012328,2]
[352541038,1739158252895,-500.0,0.00012328,2]
[352541039,1739158252904,-750.9,0.00012328,2]
[352541040,1739158252914,-500.0,0.00012328,2]
[352541041,1739158252923,-500.0,0.00012328,2]
[352541042,1739158252932,-500.0,0.00012328,2]
[352541043,1739158252941,-500.0,0.00012328,2]
[352541044,1739158252950,-500.0,0.00012328,2]
[352541045,1739158252960,-610.8,0.00012328,2]
[352541046,1739158252969,-869.06,0.00012328,2]
[352541047,1739158252978,-500.0,0.00012328,2]
[352541048,1739158252988,-500.0,0.00012328,2]
[352541049,1739158252997,-500.0,0.00012328,2]
[352541050,1739158253006,-500.0,0.00012328,2]
[352541051,1739158253015,-500.0,0.00012328,2]
[352541052,1739158253025,-500.0,0.00012328,2]
[352541053,1739158253034,-500.0,0.00012328,2]
[352541054,1739158253043,-1264.74,0.00012328,2]
[352541055,1739158253052,-406.17907979,0.00012328,2]
[352541056,1739158253061,-500.0,0.00012328,2]
[352541057,1739158253072,-500.0,0.00012328,2]
[352541058,1739158253081,-500.0,0.00012328,2]
[352541059,1739158253091,-2387.63,0.00012328,2]
[352541060,1739158253100,-2833.6,0.00012328,2]
[352541061,1739158253110,-1462.84,0.00012328,2]
[352541062,1739158253119,-9414.28,0.00012328,2]
[352541063,1739158253128,-540.44,0.00012328,2]
[352541064,1739158253138,-2762.05,0.00012328,2]
[352541065,1739158253147,-832.77,0.00012328,2]
[352541066,1739158253157,-500.0,0.00012328,2]
[352541067,1739158253166,-18426.22,0.00012328,2]
[352541068,1739158253175,-500.0,0.00012328,2]
[352541069,1739158253185,-629.0,0.00012328,2]
[352541070,1739158253195,-1212.39,0.00012328,2]
[352541071,1739158253208,-1041.49,0.00012328,2]
[352541072,1739158253218,-500.0,0.00012328,2]
[352541073,1739158253227,-541.97,0.00012328,2]
[352541074,1739158253237,-560.89,0.00012328,2]
[352541075,1739158253246,-1382.72,0.00012328,2]
[352541076,1739158253255,-500.0,0.00012328,2]
[352541077,1739158253265,-1123.04,0.00012328,2]
[352541078,1739158253274,-1124.08,0.00012328,2]
[352541079,1739158253283,-500.0,0.00012328,2]
[352541080,1739158253293,-785.51,0.00012328,2]
[352541081,1739158253303,-1966.77,0.00012328,2]
[352541082,1739158253312,-517.43,0.00012328,2]
[352541083,1739158253321,-2179.85,0.00012328,2]
[352541084,1739158253330,-1003.81,0.00012328,2]
[352541085,1739158253341,-577.79,0.00012328,2]
[352541086,1739158253350,-500.0,0.00012328,2]
[352541087,1739158253359,-792.12,0.00012328,2]
[352541088,1739158253368,-888.19,0.00012328,2]
[352541089,1739158253377,-715.47,0.00012328,2]
[352541090,1739158253386,-732.07,0.00012328,2]
[352541091,1739158253395,-974.08,0.00012328,2]
[352541092,1739158253405,-500.0,0.00012328,2]
[352541093,1739158253414,-591.46,0.00012328,2]
[352541094,1739158253423,-565.22,0.00012328,2]
[352541095,1739158253432,-500.0,0.00012328,2]
[352541096,1739158253442,-838.17,0.00012328,2]
[352541097,1739158253451,-500.0,0.00012328,2]
[352541098,1739158253461,-511.83,0.00012328,2]
[352541099,1739158253470,-2397.98,0.00012328,2]
[352541100,1739158253479,-500.0,0.00012328,2]
[352541101,1739158253488,-2724.01,0.00012328,2]
[352541102,1739158253498,-500.0,0.00012328,2]
[352541103,1739158253507,-500.0,0.00012328,2]
[352541104,1739158253517,-5390.65,0.00012328,2]
[352541105,1739158253527,-1069.82,0.00012328,2]
[352541106,1739158253536,-762.52,0.00012328,2]
[352541107,1739158253545,-529.22,0.00012328,2]
[352541108,1739158253555,-7501.34,0.00012328,2]
[352541109,1739158253565,-151.0,0.000124,2]
[352541110,1739158253576,-451.60998487,0.00012465,2]
[352541111,1739158253585,-750.9,0.00012465,2]
[352541112,1739158253595,-500.0,0.00012465,2]
[352541113,1739158253604,-500.0,0.00012465,2]
[352541114,1739158253614,-500.0,0.00012465,2]
[352541115,1739158253622,-500.0,0.00012465,2]
[352541116,1739158253632,-500.0,0.00012465,2]
[352541117,1739158253641,-869.06,0.00012465,2]
[352541118,1739158253650,-500.0,0.00012465,2]
[352541119,1739158253659,-500.0,0.00012465,2]
[352541120,1739158253668,-500.0,0.00012465,2]
[352541121,1739158253677,-201.94,0.00012465,2]
[352541122,1739158253686,-500.0,0.00012465,2]
[352541123,1739158253695,-500.0,0.00012465,2]
[352541124,1739158253705,-1264.74,0.00012465,2]
[352541125,1739158253714,-500.0,0.00012465,2]
[352541126,1739158253724,-334.87379571,0.00012465,2]
[352541127,1739158253733,-534.61963216,0.00012465,2]
[352541128,1739158253742,-2387.63,0.00012465,2]
[352541129,1739158253751,-2833.6,0.00012465,2]
[352541130,1739158253761,-1462.84,0.00012465,2]
[352541131,1739158253770,-9414.28,0.00012465,2]
[352541132,1739158253778,-540.44,0.00012465,2]
[352541133,1739158253787,-2762.05,0.00012465,2]
[352541134,1739158253797,-832.77,0.00012465,2]
[352541135,1739158253807,-500.0,0.00012465,2]
[352541136,1739158253815,-18426.22,0.00012465,2]
[352541137,1739158253826,-500.0,0.00012465,2]
[352541138,1739158253836,-629.0,0.00012465,2]
[352541139,1739158253845,-1212.39,0.00012465,2]
[352541140,1739158253854,-1041.49,0.00012465,2]
[352541141,1739158253865,-365.91344976,0.00012465,2]
[352541142,1739158253875,-541.97,0.00012465,2]
[352541143,1739158253884,-560.89,0.00012465,2]
[352541144,1739158253894,-1382.72,0.00012465,2]
[352541145,1739158253903,-500.0,0.00012465,2]
[352541146,1739158253912,-1123.04,0.00012465,2]
[352541147,1739158253921,-1124.08,0.00012465,2]
[352541148,1739158253931,-500.0,0.00012465,2]
[352541149,1739158253940,-785.51,0.00012465,2]
[352541150,1739158253949,-1966.77,0.00012465,2]
[352541151,1739158253959,-517.43,0.00012465,2]
[352541152,1739158253968,-2179.85,0.00012465,2]
[352541153,1739158253978,-1003.81,0.00012465,2]
[352541154,1739158253987,-577.79,0.00012465,2]
[352541155,1739158253997,-500.0,0.00012465,2]
[352541156,1739158254007,-792.12,0.00012465,2]
[352541157,1739158254017,-888.19,0.00012465,2]
[352541158,1739158254026,-715.47,0.00012465,2]
[352541159,1739158254035,-732.07,0.00012465,2]
[352541160,1739158254044,-974.08,0.00012465,2]
[352541161,1739158254054,-500.0,0.00012465,2]
[352541162,1739158254063,-591.46,0.00012465,2]
[352541163,1739158254074,-565.22,0.00012465,2]
[352541164,1739158254083,-530.58386184,0.00012465,2]
[352541165,1739158254092,-838.17,0.00012465,2]
[352541166,1739158254102,-500.0,0.00012465,2]
[352541167,1739158254111,-511.83,0.00012465,2]
[352541168,1739158254120,-2397.98,0.00012465,2]
[352541169,1739158254130,-500.0,0.00012465,2]
[352541170,1739158254139,-2724.01,0.00012465,2]
[352541171,1739158254148,-315.35780795,0.00012465,2]
[352541172,1739158254158,-500.0,0.00012465,2]
[352541173,1739158254168,-5390.65,0.00012465,2]
[352541174,1739158254178,-1069.82,0.00012465,2]
[352541175,1739158254188,-762.52,0.00012465,2]
[352541176,1739158254197,-529.22,0.00012465,2]
[352541177,1739158254208,-7501.34,0.00012465,2]
[352541178,1739158254219,-151.0,0.000125,2]
[352541179,1739158254229,-4430.89038492,0.000125,2]
[352541180,1739158254239,-1500.0,0.00012522,2]
[352541181,1739158254248,-531.26523494,0.00012522,2]
[352541182,1739158254258,-1500.0,0.00012523,2]
[352541183,1739158254268,-502.11215046,0.00012559,2]
[352541184,1739158254277,-1002.68088923,0.00012559,2]
[352541185,1739158254287,-1000.0,0.00012577,2]
[352541186,1739158254296,-750.9,0.00012602,2]
[352541187,1739158254306,-500.0,0.00012602,2]
[352541188,1739158254315,-246.5603243,0.00012602,2]
[352541189,1739158254326,-500.0,0.00012602,2]
[352541190,1739158254335,-500.0,0.00012602,2]
[352541191,1739158254344,-500.0,0.00012602,2]
[352541192,1739158254353,-869.06,0.00012602,2]
[352541193,1739158254362,-500.0,0.00012602,2]
[352541194,1739158254371,-500.0,0.00012602,2]
[352541195,1739158254380,-500.0,0.00012602,2]
[352541196,1739158254389,-500.0,0.00012602,2]
[352541197,1739158254399,-1264.74,0.00012602,2]
[352541198,1739158254407,-500.0,0.00012602,2]
[352541199,1739158254417,-2387.63,0.00012602,2]
[352541200,1739158254426,-2833.6,0.00012602,2]
[352541201,1739158254435,-1462.84,0.00012602,2]
[352541202,1739158254444,-9414.28,0.00012602,2]
[352541203,1739158254453,-540.44,0.00012602,2]
[352541204,1739158254463,-2762.05,0.00012602,2]
[352541205,1739158254472,-832.77,0.00012602,2]
[352541206,1739158254481,-455.69066298,0.00012602,2]
[352541207,1739158254490,-18426.22,0.00012602,2]
[352541208,1739158254500,-500.0,0.00012602,2]
[352541209,1739158254509,-629.0,0.00012602,2]
[352541210,1739158254518,-1212.39,0.00012602,2]
[352541211,1739158254527,-1041.49,0.00012602,2]
[352541212,1739158254537,-541.97,0.00012602,2]
[352541213,1739158254547,-560.89,0.00012602,2]
[352541214,1739158254556,-1382.72,0.00012602,2]
[352541215,1739158254565,-500.0,0.00012602,2]
[352541216,1739158254576,-1123.04,0.00012602,2]
[352541217,1739158254585,-1124.08,0.00012602,2]
[352541218,1739158254670,-500.0,0.00012602,2]
[352541219,1739158254680,-785.51,0.00012602,2]
[352541220,1739158254690,-1966.77,0.00012602,2]
[352541221,1739158254699,-517.43,0.00012602,2]
[352541222,1739158254709,-2179.85,0.00012602,2]
[352541223,1739158254719,-1003.81,0.00012602,2]
[352541224,1739158254729,-577.79,0.00012602,2]
[352541225,1739158254738,-500.0,0.00012602,2]
[352541226,1739158254748,-792.12,0.00012602,2]
[352541227,1739158254758,-888.19,0.00012602,2]
[352541228,1739158254767,-715.47,0.00012602,2]
[352541229,1739158254777,-732.07,0.00012602,2]
[352541230,1739158254787,-974.08,0.00012602,2]
[352541231,1739158254798,-616.17095926,0.00012602,2]
[352541232,1739158254808,-591.46,0.00012602,2]
[352541233,1739158254818,-565.22,0.00012602,2]
[352541234,1739158254829,-838.17,0.00012602,2]
[352541235,1739158254839,-500.0,0.00012602,2]
[352541236,1739158254849,-511.83,0.00012602,2]
[352541237,1739158254858,-2397.98,0.00012602,2]
[352541238,1739158254867,-500.0,0.00012602,2]
[352541239,1739158254877,-2724.01,0.00012602,2]
[352541240,1739158254887,-500.0,0.00012602,2]
[352541241,1739158254896,-5390.65,0.00012602,2]
[352541242,1739158254906,-1069.82,0.00012602,2]
[352541243,1739158254915,-762.52,0.00012602,2]
[352541244,1739158254924,-529.22,0.00012602,2]
[352541245,1739158254933,-7501.34,0.00012602,2]
[352541246,1739158254942,-500.0,0.00012645,2]
[352541247,1739158254951,-500.0,0.00012645,2]
[352541248,1739158254961,-415.69858582,0.00012648,2]
[352541249,1739158254970,-750.9,0.00012739,2]
[352541250,1739158254980,-500.0,0.00012739,2]
[352541251,1739158254989,-500.0,0.00012739,2]
[352541252,1739158254999,-500.0,0.00012739,2]
[352541253,1739158255008,-869.06,0.00012739,2]
[352541254,1739158255018,-527.39822142,0.00012739,2]
[352541255,1739158255027,-500.0,0.00012739,2]
[352541256,1739158255036,-500.0,0.00012739,2]
[352541257,1739158255046,-500.0,0.00012739,2]
[352541258,1739158255055,-1264.74,0.00012739,2]
[352541259,1739158255065,-500.0,0.00012739,2]
[352541260,1739158255075,-2387.63,0.00012739,2]
[352541261,1739158255085,-2833.6,0.00012739,2]
[352541262,1739158255096,-1462.84,0.00012739,2]
[352541263,1739158255107,-9414.28,0.00012739,2]
[352541264,1739158255118,-540.44,0.00012739,2]
[352541265,1739158255128,-2762.05,0.00012739,2]
[352541266,1739158255137,-832.77,0.00012739,2]
[352541267,1739158255147,-18426.22,0.00012739,2]
[352541268,1739158255156,-500.0,0.00012739,2]
[352541269,1739158255166,-629.0,0.00012739,2]
[352541270,1739158255176,-1212.39,0.00012739,2]
[352541271,1739158255185,-1041.49,0.00012739,2]
[352541272,1739158255195,-541.97,0.00012739,2]
[352541273,1739158255207,-560.89,0.00012739,2]
[352541274,1739158255219,-1382.72,0.00012739,2]
[352541275,1739158255230,-500.0,0.00012739,2]
[352541276,1739158255240,-1123.04,0.00012739,2]
[352541277,1739158255250,-1124.08,0.00012739,2]
[352541278,1739158255260,-500.0,0.00012739,2]
[352541279,1739158255270,-785.51,0.00012739,2]
[352541280,1739158255280,-1966.77,0.00012739,2]
[352541281,1739158255291,-517.43,0.00012739,2]
[352541282,1739158255302,-2179.85,0.00012739,2]
[352541283,1739158255312,-1003.81,0.00012739,2]
[352541284,1739158255323,-577.79,0.00012739,2]